Cogmind - Beta 17 @@@ ROGUE MODE // 2026.06.23 @ 20:56:12 Player: unq Result: Destroyed by G-47 Trooper with Particle Gun Performance ------------- Evolutions (0) 0 Regions Visited (1) 200 Robots Destroyed (19) 95 Value Destroyed (344) 344 Prototype IDs (0) 0 Alien Tech Used (0) 0 Bonus (0) 0 TOTAL SCORE: 639 Bonus ------- None Cogmind --------- Core Integrity 0/250 Matter 218/300 Energy 100/100 System Corruption 0% Temperature Cool (18) Movement Rolling (115) Ox1 Location -10/Materials Parts ------- > --- POWER (1) -------- (None) > --- PROPULSION (2) --- Aluminum Leg Compact Wheel > --- UTILITY (2) ------ Large Storage Unit > --- WEAPON (2) ------- Light Assault Rifle > --- INVENTORY (15) --- Medium Storage Unit Medium Matter Pod (0) Visual Processing Unit Seismic Detector Seismic Detector Mining Laser Peak State ------------ > --- POWER ------------ Light Ion Engine > --- PROPULSION ------- Light Treads Light Treads > --- UTILITY ---------- Large Storage Unit Seismic Detector > --- WEAPON ----------- Assault Rifle Light Assault Rifle > --- INVENTORY -------- Light Ion Engine Aluminum Leg Aluminum Leg Compact Wheel Heat Sink Medium Storage Unit Seismic Detector EM Pulse Gun Light Assault Rifle Mining Laser [Rating: 8] Favorites ----------- Power Light Ion Engine Engine Light Ion Engine Propulsion Light Treads Treads Light Treads Leg Aluminum Leg Wheel Compact Wheel Utility Seismic Detector Device Seismic Detector Storage Large Storage Unit Weapon Assault Rifle Energy Gun EM Pulse Gun Ballistic Gun Assault Rifle Special Weapon Mining Laser Build | -11 -10 ------- Run | Yrd Mat Slots Evolved . | . . Power . | . . Propulsion . | . . Utility . | . . Weapon . | . . Parts Attached 17 | 8 9 Power 3 | 1 2 Engine 3 | 1 2 Core . | . . Reactor . | . . Propulsion 5 | 2 3 Treads 2 | 2 . Leg 2 | . 2 Wheel 1 | . 1 Hover . | . . Flight . | . . Utility 4 | 2 2 Device 2 | 1 1 Storage 2 | 1 1 Processor . | . . Hackware . | . . Protection . | . . Artifact . | . . Weapon 5 | 3 2 Energy Gun 1 | 1 . Energy Cannon . | . . Ballistic Gun 3 | 2 1 Ballistic Cannon . | . . Launcher . | . . Special Weapon 1 | . 1 Impact Weapon . | . . Slashing Weapon . | . . Piercing Weapon . | . . Special Melee Weapon . | . . Unidentified Prototypes . | . . Parts Lost 9 | . 9 Power 2 | . 2 Propulsion 3 | . 3 Utility 1 | . 1 Weapon 3 | . 3 Highest Loss Streak 9 | . 9 To Critical Strikes . | . . Average Backups 8 | 3 9 Power . | . . Propulsion 2 | 2 2 Utility 2 | . 3 Weapon 2 | . 2 Tool/Special . | . . Unused Backups 5 | . 5 Power 1 | . 1 Propulsion . | . . Utility 4 | . 4 Weapon . | . . Tool/Special . | . . Average Slot Usage (%) 99 | . 99 Engine 13 | . 13 Treads 26 | . 26 Leg 1 | . 1 Device 14 | . 14 Storage 14 | . 14 Ballistic Gun 25 | . 25 Special Weapon 1 | . 1 Peak Build Rating 8 | 7 8 Average Rating 7 | 5 7 On Entrance 3 | . 7 Avg Prop Armor Cover (%) . | . . Naked Turns . | . . Heaviest Build 29 | 12 29 Greatest Support 40 | 40 40 Greatest Overweight (x) 1 | . 1 Average Overweight (x) . | . . Largest Inventory Capacity 15 | 8 15 Average Capacity 13 | 7 14 Most Carried 13 | 6 13 Average Carried 8 | 3 9 Final Capacity 15 | 8 15 Final Carried 6 | 6 6 Class Distribution -------------------- 100% | Mutant Dominant Class ---------------- Mutant | -10/Materials Resources | -11 -10 ----------- Run | Yrd Mat Matter Collected 501 | 198 303 Remotely . | . . Salvage Created 438 | 46 392 Parts 37 | 8 29 Haulers Intercepted . | . . Recyclers Shooed . | . . Parts Field Recycled . | . . Retrieved Matter . | . . Parts Self-Destructed . | . . Prevented . | . . Parts Restored . | . . Kills | -11 -10 ------- Run | Yrd Mat Combat Hostiles Destroyed 15 | . 15 Guns 14 | . 14 AOE 1 | . 1 Classes Destroyed 4 | 1 3 Tunneler 3 | 3 . Watcher 1 | . 1 Swarmer 9 | . 9 Grunt 6 | . 6 Best Kill Streak 6 | 1 6 Combat Bots Only 5 | . 5 Max Kills in Single Turn 1 | 1 1 Gunslinging . | . . Exploded 1 | . 1 Melee . | . . Uniques/NPCs Destroyed . | . . Combat | -11 -10 -------- Run | Yrd Mat Hostile Shots Fired 144 | . 144 Missed 32 | . 32 Hits 112 | . 112 Projectile 112 | . 112 Critical Strikes 1 | . 1 Damage Taken 1266 | . 1266 Core 251 | . 251 Absorbed by Shields . | . . Core Remaining (%) 100 | 100 . Volleys Fired 68 | 11 57 Largest 2 | 2 2 Hottest 100 | 40 100 Shots Fired 127 | 22 105 Gun 120 | 22 98 Cannon . | . . Launcher . | . . Special 7 | . 7 Kinetic 114 | 22 92 Thermal 7 | . 7 Explosive . | . . Electromagnetic 6 | . 6 Robot Hit Streak 13 | 7 13 Robot Miss Streak 4 | 2 4 Penetration Max . | . . Secondary Targets 2 | . 2 Max Gunslinging Chain 1 | . 1 Shots Hit Robots 81 | 17 64 Core Hits 33 | 4 29 Critical Kills . | . . Critical Parts Destroyed 1 | . 1 Critical Strikes 1 | . 1 Destroy 1 | . 1 Melee Attacks . | . . Impact . | . . Slashing . | . . Piercing . | . . Sneak Attacks . | . . Combat Hostiles . | . . Follow-up Attacks . | . . Damage Inflicted 993 | 196 797 Guns 893 | 196 697 Cannons . | . . Explosions 100 | . 100 Melee . | . . Ramming . | . . Kinetic 824 | 196 628 Thermal 100 | . 100 Explosive . | . . Electromagnetic 69 | . 69 Impact . | . . Slashing . | . . Piercing . | . . Highest Corruption . | . . Average Corruption . | . . Corruption Purged . | . . Corruption Blocked . | . . Overload Shots . | . . Overflow Damage . | . . Projectiles . | . . Explosions . | . . Melee . | . . Knockbacks . | . . Impact . | . . Kinetic . | . . Secondary . | . . Self-Inflicted Damage 31 | . 31 Shots 1 | . 1 Rammed . | . . Targets Rammed . | . . Kicked . | . . Crushed . | . . Highest Temperature 40 | . 40 Average Temperature 13 | . 13 Received Heat Transfer 507 | . 507 Siege Activations . | . . Martial Activations . | . . Shielding Activations . | . . Robots Disrupted . | . . Combat Hostiles . | . . Robots Corrupted . | . . Combat Hostiles . | . . Parts Fried . | . . Impact Corruptions . | . . Robots Melted . | . . Combat Hostiles . | . . Parts Melted . | . . Heat Transferred 200 | . 200 Parts Sabotaged . | . . Parts Stolen . | . . Parts Stripped . | . . Power Chain Reactions 1 | . 1 Alert | -11 -10 ------- Run | Yrd Mat Maximum Alert Level . | . . Low Security (%) 100 | 100 100 Level 1 . | . . Level 2 . | . . Level 3 . | . . Level 4 . | . . Level 5 . | . . High Security . | . . Max Security . | . . Peak Influence 168 | 5 168 Initial . | . . Average 60 | . 74 Influence Increases 426 | 15 411 Destroy 0b10 Robot/C 300 | . 300 Destroy 0b10 Robot/NC 20 | 15 5 Destroy Leader 52 | . 52 Select Force Hacks 30 | . 30 Destroy Structure 9 | . 9 Partial Spotted 15 | . 15 Influence Decreases 334 | 15 319 Time Decay 244 | 15 229 Lost Part 90 | . 90 Squads Dispatched 1 | . 1 Investigation 1 | . 1 Extermination . | . . Reinforcement . | . . Assault . | . . Garrison . | . . Intercept . | . . Searches Triggered . | . . Construction Impeded . | . . Haulers Reinforced . | . . Active Scanning Responses . | . . Cargo Convoy Interrupts . | . . Stealth | -11 -10 --------- Run | Yrd Mat Distress Signals 2 | . 2 Communications Jammed . | . . Distress Signals . | . . Times Spotted 23 | . 23 Peak Tracking Total 7 | . 7 Tactical Retreats . | . . Traps | -11 -10 ------- Run | Yrd Mat Traps Triggered 1 | . 1 Indirectly . | . . Trap Hack Attempts . | . . Triggered . | . . Disarmed . | . . Reprogrammed . | . . Reused . | . . Traps Extracted . | . . Installed . | . . Triggered . | . . Machines | -11 -10 ---------- Run | Yrd Mat Machines Disabled 1 | . 1 Max in Single Turn 1 | . 1 Machines Repaired . | . . Machines Dismantled . | . . Machines Sabotaged . | . . Overloaded Fab Kills . | . . Hacking | -11 -10 --------- Run | Yrd Mat Machines Accessed 2 | . 2 Terminals 1 | . 1 Fabricators . | . . Repair Stations . | . . Recycling Units 1 | . 1 Scanalyzers . | . . Garrison Access . | . . Total Hacks 4 | . 4 Successful 3 | . 3 Failed 1 | . 1 Catastrophic . | . . Database Lockouts . | . . Manual 2 | . 2 Terminals 1 | . 1 Fabricators . | . . Repair Stations . | . . Recycling Units 3 | . 3 Scanalyzers . | . . Garrison Access . | . . Terminal Hacks 1 | . 1 Hauler Manifests 1 | . 1 Fabricator Hacks . | . . Repair Station Hacks . | . . Recycling Unit Hacks 1 | . 1 Retrieve Components 1 | . 1 Scanalyzer . | . . Garrison Access Hacks . | . . Unauthorized Hacks 1 | . 1 Terminals . | . . Fabricators . | . . Repair Stations . | . . Recycling Units 1 | . 1 Tunnel 1 | . 1 Scanalyzers . | . . Garrison Access . | . . Data Cores Recovered . | . . Used . | . . Hacking Detections 2 | . 2 Full Trace Events . | . . Feedback Events . | . . Feedback Blocked . | . . Robot Schematics Acquired . | . . Robots Built . | . . Authchips . | . . Time . | . . Total Robot Build Rating . | . . Part Schematics Acquired . | . . Parts Built . | . . Authchips . | . . Time . | . . Total Part Build Rating . | . . Part Studies Acquired . | . . Parts Repaired . | . . Time . | . . Parts Recycled . | . . Recycled Matter . | . . Retrieved Matter . | . . Retrieved Components . | . . Parts Scanalyzed . | . . Part Schematics Acquired . | . . Parts Damaged . | . . Bothacking | -11 -10 ------------ Run | Yrd Mat Used RIF Installer . | . . Robots Hacked . | . . Non-combat . | . . Combat . | . . Robot Hacks Applied . | . . Relay Couplers Released . | . . Fabnet Peak Effective % . | . . Robots Rewired . | . . Allies Hacked . | . . Hacks Repelled . | . . Allies | -11 -10 -------- Run | Yrd Mat Total Allies . | . . Largest Group . | . . Highest-Rated Group . | . . Highest-Rated Ally . | . . Total Orders . | . . Ally Attacks . | . . Total Damage . | . . Kills . | . . Allies Corrupted . | . . Allies Melted . | . . Intel | -11 -10 ------- Run | Yrd Mat Active Infowar (turns) 680 | 91 589 Seismic 680 | 91 589 Robot Analysis Total . | . . Derelict Logs Recovered . | . . Drone Launches . | . . Drone Recoveries . | . . Exploration | -11 -10 ------------- Run | Yrd Mat Turns Passed 808 | 155 653 Spaces Moved 351 | 71 280 Core 5 | 5 . Treads 341 | 66 275 Legs 2 | . 2 Wheels 3 | . 3 Hover . | . . Flight . | . . Fastest Speed 50 | 50 115 Average Speed 158 | 152 159 Slowest Speed 190 | 160 190 Overloaded Moves . | . . Propulsion Burnouts . | . . Robots Hopped . | . . Potential Cave-ins . | . . Cave-ins Triggered . | . . Exploration Rate (%) 23 | 6 41 Regions Visited 1 Branch Regions . Pre-discovered Areas 1 | . 1 Known Exits Taken . | . . Unknown Exits Taken 1 | 1 . Scrap Searched . | . . Spaces Dug 4 | . 4 Terrain Destroyed 9 | . 9 Melee . | . . Projectile 6 | . 6 AOE 3 | . 3 Terrain Rammed . | . . Walls Destroyed . | . . Machines Disabled . | . . Actions | -11 -10 --------- Run | Yrd Mat Total 470 | 95 375 Wait 15 | . 15 Move 350 | 70 280 Hop . | . . Pick Up 12 | 5 7 Fast Attach 9 | 8 1 Attach 6 | . 6 Detach 1 | 1 . Swap 6 | . 6 Drop 3 | . 3 Fire 68 | 11 57 Melee . | . . Ram . | . . Kick . | . . Crush . | . . Escape Stasis . | . . Rewire . | . . Trap . | . . Miscellaneous . | . . Route ------- -11/Scrapyard -10/Materials (discovered 3 exits: [*Mat] / [*Min x2]) History --------- Turn | Location | Event 10 | -11/Scrapyard | Discovered new exit (range 13) 156 | -11/Scrapyard | Entered Materials 243 | -10/Materials | Discovered new exit (range 16) 307 | -10/Materials | Build established: Mutant 530 | -10/Materials | Discovered new exit (range 16) 656 | -10/Materials | Derelicts attacked the area 701 | -10/Materials | Discovered new exit (range 6) 774 | -10/Materials | Core integrity fell below 50% 796 | -10/Materials | Core integrity fell below 20% 809 | -10/Materials | Destroyed by G-47 Trooper with Particle Gun Last Messages --------------- 00775_ G-34 Mercenary destroyed. 00775_ K-01 Serf collects debris. 00775_ Assault Rifle destroyed. 00777_ M-13 Machinist repairs G-34 Mercenary. 00778_ U-05 Engineer lays Concrete. 00778_ K-01 Serf collects debris. 00779_ U-05 Engineer lays Concrete. 00779_ K-01 Serf collects debris. 00779_ Ion Engine destroyed. 00780_ U-05 Engineer builds a Wall. 00781_ K-01 Serf collects debris. 00784_ U-05 Engineer lays Concrete. 00787_ K-01 Serf collects debris. 00798_ Acquired 50 matter. 00801_ Lgt. Assault Rifle destroyed. 00801_ Heat Sink destroyed. 00803_ Aluminum Leg destroyed. 00805_ Critical hit (Burn: +37). 00807_ Acquired 22 matter. 00807_ Ion Engine destroyed. Map ----- +----------------------------------------------------+ | #?# #??????????????? ?????????????????? | | [#?# #??????????????? ??????????????????? | | [=#?# #??????????????? ??????????????????? | | = #?# #??????????????? ??????????????????? | | *### #??????????????? ???????????????????? | | * ###+##########??????? #???????????????????? | | = ?????? #???????????????????? | | < ?????? #???????????????????? | | = ?????? #???????????????????? | | = ##### ####+########### ##??????????????????? | | ##???# #?# ##""" #??????????????????? | | #????# #?# """ ##" #??????????????????? | | #????# #?# """"" #" #??????????????????? | | ######/### """"" ##"" < #??????????????????? | | # # """"" #%"| #??????????????????? | | # """ # """ ##= #??????????????????? | | # """ # ##""" #??????????????????? | | # """ = # ##### kk##??????????????????? | | + # #???# #???????????????????? | | # """ """##########???# k#???????????????????? | | *[ # """ Y"############## #???????????????????? | | *# """ """## + #???????????????????? | | # ## # #######+###?????????? | | ########### # ????????? | | #?????????# =m[g ????????? | | #?????????# =g @ ????????? | | ##????????# ggk /|[ ????????? | | #????????# # /|[ #?????????? | | #????????############# """ |[ ##?????????? | | #????????????????????? """ #??????????? | | #????????????????????? """ k +??????????? | | #????????????????????? #??????????? | | #+###????????????????????? ? ????????????? | | #?????????????????????? ##??#??????????????? | | " #?????????????????????? #??????????????????? | | " #?????????????????????? #??????????????????? | | " #???????????????????????? #??????????????????? | | #???????????????????????? #??????????????????? | | #???????????????????????? #??????????????????? | | ####????????????????????????? ???????????????????? | | ?????????????????????????????????????????????????? | | ?????????????????????????????????????????????????? | | ?????????????????????????????????????????????????? | | ?????????????????????????????????????????????????? | | ?????????????????????????????????????????????????? | | ?????????????????????????????????????????????????? | | ?????????????????????????????????????????????????? | | ?????????????????????????????????????????????????? | | ?????????????????????????????????????????????????? | | ?????????????????????????????????????????????????? | +----------------------------------------------------+ Best States ------------- Heat Dissipation 35 Energy Generation 10 Energy Capacity 250 Matter Stores 251 Matter Capacity 300 Sight Range 16 Terrain Scan Density 10 Evasion (%) 40 Recoil Reduction 2 Item Schematics ----------------- None Robot Schematics ------------------ None Fabricated ------------ Nothing Repaired ---------- Nothing Studied --------- None Alien Tech Used ----------------- None Achievements -------------- None Challenges ------------ None Game ------ Seed SystemRestorationPendant Manual? 0 Play Time 00:08:45 Cumulative 373.3 hours Start 2026.06.23 @ 20:45:58 End 2026.06.23 @ 20:56:12 Sessions 2 Manual Loads 0 Difficulty Rogue Special Mode None Game No. 107 Rogue 107 Adventurer 0 Explorer 0 Win Type - Total 2 Types 2/0/0/0/0/0/0/0/0/0 Lore% 69 Gallery% 60 Achievement% 51 Wizard Run 0 Options --------- Layout 0 ASCII 1 Keyboard 1 Movement Arrows Keybinds 0 Fullscreen 1 Font 24/Smallcaps Map View 76x50 Zoom Use 0% Tactical HUD 1 Map Filters NONE Filters NONE Steam 1 RUN: f443e6f9-54b3-402d-b5ac-813b7990c6f1